Cogmind - Beta 16 @@@ ROGUE MODE // 2025.10.25 @ 11:52:18 Player: KeKe Result: Destroyed by IK-5X9(R) with Subdweller Machine Gun Performance ------------- Evolutions (0) 0 Regions Visited (2) 400 Robots Destroyed (23) 115 Value Destroyed (507) 507 Prototype IDs (0) 0 Alien Tech Used (0) 0 Bonus (0) 0 TOTAL SCORE: 1022 Bonus ------- None Cogmind --------- Core Integrity 0/250 Matter 234/300 Energy 111/250 System Corruption 2% Temperature Cool (0) Movement Rolling (107) Ox1 Location -10/Subcaves Parts ------- > --- POWER (1) -------- Ion Engine > --- PROPULSION (2) --- Wheel Subdweller Monowheel > --- UTILITY (2) ------ Large Storage Unit Visual Processing Unit > --- WEAPON (2) ------- Subdweller Machine Gun Makeshift Shrapnel Gun > --- INVENTORY (15) --- Light Ion Engine Small Storage Unit Assault Rifle Shrapnel Trap Peak State ------------ > --- POWER ------------ Light Nuclear Core > --- PROPULSION ------- Wheel Wheel > --- UTILITY ---------- Large Storage Unit Visual Processing Unit > --- WEAPON ----------- Makeshift Shrapnel Gun Slug Cannon > --- INVENTORY -------- Ion Engine Light Ion Engine Subdweller Monowheel Small Storage Unit Assault Rifle Subdweller Machine Gun Shrapnel Trap [Rating: 16] Favorites ----------- Power Light Nuclear Core Engine Light Ion Engine Power Core Light Nuclear Core Propulsion Improved Aluminum Leg Leg Improved Aluminum Leg Wheel Wheel Utility Visual Processing Unit Device Seismic Detector Storage Large Storage Unit Processor Visual Processing Unit Weapon Slug Cannon Energy Gun EM Pulse Gun Ballistic Gun Assault Rifle Ballistic Cannon Slug Cannon Build | -11 -10 -10 ------- Run | Yrd Mat Sub Slots Evolved . | . . . Power . | . . . Propulsion . | . . . Utility . | . . . Weapon . | . . . Parts Attached 22 | . 15 7 Power 4 | . 3 1 Engine 3 | . 2 1 Core 1 | . 1 . Reactor . | . . . Propulsion 7 | . 4 3 Treads . | . . . Leg 4 | . 4 . Wheel 3 | . . 3 Hover . | . . . Flight . | . . . Utility 3 | . 3 . Device 1 | . 1 . Storage 1 | . 1 . Processor 1 | . 1 . Hackware . | . . . Protection . | . . . Artifact . | . . . Weapon 8 | . 5 3 Energy Gun 4 | . 4 . Energy Cannon . | . . . Ballistic Gun 3 | . 1 2 Ballistic Cannon 1 | . . 1 Launcher . | . . . Special Weapon . | . . . Impact Weapon . | . . . Slashing Weapon . | . . . Piercing Weapon . | . . . Special Melee Weapon . | . . . Unidentified Prototypes . | . . . Parts Lost 8 | . 4 4 Power 2 | . 1 1 Propulsion 1 | . . 1 Utility 1 | . 1 . Weapon 4 | . 2 2 Highest Loss Streak 3 | . 2 3 To Critical Strikes 1 | . . 1 Average Backups 5 | . 6 5 Power 1 | . 1 2 Propulsion 2 | . 3 1 Utility . | . . 1 Weapon 1 | . 1 . Tool/Special . | . . . Unused Backups 7 | . 6 1 Power . | . . . Propulsion 4 | . 4 . Utility 1 | . . 1 Weapon 2 | . 2 . Tool/Special . | . . . Average Slot Usage (%) 97 | . 98 95 Engine 3 | . 7 . Core 10 | . 6 13 Leg 17 | . 28 9 Wheel 10 | . . 18 Device 2 | . 5 . Storage 14 | . 14 14 Processor 11 | . 7 14 Energy Gun 10 | . 21 1 Ballistic Gun 9 | . 6 11 Ballistic Cannon 6 | . . 10 Peak Build Rating 16 | . 12 16 Average Rating 12 | . 10 13 On Entrance 8 | 6 6 12 Avg Prop Armor Cover (%) . | . . . Naked Turns . | . . . Heaviest Build 36 | 11 29 36 Greatest Support 26 | 20 26 26 Greatest Overweight (x) 1 | . 1 1 Average Overweight (x) . | . . . Largest Inventory Capacity 15 | . 15 15 Average Capacity 12 | . 9 15 Most Carried 8 | . 8 7 Average Carried 5 | . 6 5 Final Capacity 15 | 8 15 15 Final Carried 6 | 6 6 4 Class Distribution -------------------- 100% | Mutant Dominant Class ---------------- Mutant | -10/Materials Mutant | -10/Subcaves Resources | -11 -10 -10 ----------- Run | Yrd Mat Sub Matter Collected 683 | 180 236 267 Remotely . | . . . Salvage Created 690 | . 584 106 Parts 45 | . 35 10 Haulers Intercepted 1 | . 1 . Recyclers Shooed . | . . . Parts Field Recycled . | . . . Retrieved Matter . | . . . Parts Self-Destructed 18 | . . 18 Prevented . | . . . Parts Restored . | . . . Kills | -11 -10 -10 ------- Run | Yrd Mat Sub Combat Hostiles Destroyed 19 | . 12 7 Guns 13 | . 12 1 Cannons 6 | . . 6 Classes Destroyed 6 | . 5 1 Hauler 1 | . 1 . Recycler 1 | . 1 . Watcher 2 | . 2 . Swarmer 9 | . 6 3 Grunt 6 | . 6 . Subdweller 4 | . . 4 Best Kill Streak 6 | . 6 3 Combat Bots Only 3 | . 3 3 Max Kills in Single Turn 1 | . 1 1 Gunslinging . | . . . Exploded . | . . . Melee . | . . . Uniques/NPCs Destroyed . | . . . Combat | -11 -10 -10 -------- Run | Yrd Mat Sub Hostile Shots Fired 107 | . 58 49 Missed 25 | . 16 9 Hits 82 | . 42 40 Projectile 82 | . 42 40 AOE 1 | . 1 . Critical Strikes 3 | . 1 2 Damage Taken 1166 | . 491 675 Core 265 | . 99 166 Absorbed by Shields . | . . . Core Remaining (%) 100 | 100 . . Volleys Fired 69 | . 39 30 Largest 2 | . 2 2 Hottest 90 | . 90 70 Shots Fired 119 | . 68 51 Gun 90 | . 68 22 Cannon 29 | . . 29 Launcher . | . . . Special . | . . . Kinetic 64 | . 13 51 Thermal . | . . . Explosive . | . . . Electromagnetic 55 | . 55 . Robot Hit Streak 15 | . 11 15 Robot Miss Streak 4 | . 4 4 Penetration Max . | . . . Secondary Targets 2 | . 2 . Max Gunslinging Chain 1 | . 1 . Shots Hit Robots 78 | . 48 30 Core Hits 35 | . 26 9 Critical Kills 2 | . . 2 Critical Parts Destroyed . | . . . Critical Strikes 5 | . . 5 Destroy 5 | . . 5 Melee Attacks . | . . . Impact . | . . . Slashing . | . . . Piercing . | . . . Sneak Attacks . | . . . Combat Hostiles . | . . . Follow-up Attacks . | . . . Damage Inflicted 1378 | . 652 726 Guns 853 | . 652 201 Cannons 525 | . . 525 Explosions . | . . . Melee . | . . . Ramming . | . . . Kinetic 872 | . 146 726 Thermal . | . . . Explosive . | . . . Electromagnetic 506 | . 506 . Impact . | . . . Slashing . | . . . Piercing . | . . . Highest Corruption 2 | . 2 2 Average Corruption 2 | . 2 2 Corruption Purged . | . . . Corruption Blocked . | . . . Effects 19 | . 2 17 Message Errors 6 | . 1 5 Matter Fused 2 | . . 2 Energy Discharges 4 | . . 4 Data Loss (minor) 4 | . . 4 Data Loss (major) 2 | . . 2 Misfires 1 | . 1 . Overload Shots . | . . . Overflow Damage . | . . . Projectiles . | . . . Explosions . | . . . Melee . | . . . Knockbacks 3 | . . 3 Impact . | . . . Kinetic 3 | . . 3 Secondary . | . . . Self-Inflicted Damage . | . . . Shots . | . . . Rammed . | . . . Targets Rammed . | . . . Kicked . | . . . Crushed . | . . . Highest Temperature 166 | . 166 . Average Temperature 57 | . 57 . Received Heat Transfer 201 | . 156 45 Siege Activations . | . . . Martial Activations . | . . . Shielding Activations . | . . . Robots Disrupted . | . . . Combat Hostiles . | . . . Robots Corrupted . | . . . Combat Hostiles . | . . . Parts Fried 1 | . 1 . Impact Corruptions . | . . . Robots Melted . | . . . Combat Hostiles . | . . . Parts Melted . | . . . Heat Transferred . | . . . Parts Sabotaged . | . . . Parts Stolen . | . . . Parts Stripped . | . . . Power Chain Reactions . | . . . Alert | -11 -10 -10 ------- Run | Yrd Mat Sub Maximum Alert Level . | . . . Low Security (%) 100 | . 100 . Level 1 . | . . . Level 2 . | . . . Level 3 . | . . . Level 4 . | . . . Level 5 . | . . . High Security . | . . . Max Security . | . . . Peak Influence 162 | . 162 . Initial . | . . . Average 77 | . 77 . Influence Increases 386 | . 316 70 Destroy 0b10 Robot/C 300 | . 240 60 Destroy 0b10 Robot/NC 20 | . 20 . Destroy Leader 66 | . 56 10 Influence Decreases 386 | . 238 148 Entered New Map 38 | . . 38 Time Decay 308 | . 198 110 Lost Part 40 | . 40 . Squads Dispatched 2 | . 2 . Investigation 1 | . 1 . Extermination . | . . . Reinforcement 1 | . 1 . Assault . | . . . Garrison . | . . . Intercept . | . . . Searches Triggered . | . . . Construction Impeded . | . . . Haulers Reinforced . | . . . Active Scanning Responses . | . . . Cargo Convoy Interrupts . | . . . Stealth | -11 -10 -10 --------- Run | Yrd Mat Sub Distress Signals . | . . . Communications Jammed . | . . . Distress Signals . | . . . Times Spotted 24 | . 16 8 Peak Tracking Total 5 | . 5 3 Tactical Retreats . | . . . Traps | -11 -10 -10 ------- Run | Yrd Mat Sub Traps Triggered 3 | . 3 . Indirectly . | . . . Trap Hack Attempts . | . . . Triggered . | . . . Disarmed . | . . . Reprogrammed . | . . . Reused . | . . . Traps Extracted . | . . . Installed . | . . . Triggered . | . . . Most Traps Carried 1 | . . 1 Machines | -11 -10 -10 ---------- Run | Yrd Mat Sub Machines Disabled . | . . . Max in Single Turn . | . . . Machines Repaired . | . . . Machines Dismantled . | . . . Machines Sabotaged . | . . . Overloaded Fab Kills . | . . . Hacking | -11 -10 -10 --------- Run | Yrd Mat Sub Machines Accessed 2 | . 1 1 Terminals 1 | . 1 . Fabricators . | . . . Repair Stations . | . . . Recycling Units . | . . . Scanalyzers . | . . . Garrison Access . | . . . Total Hacks 4 | . 1 3 Successful 4 | . 1 3 Failed . | . . . Catastrophic . | . . . Database Lockouts . | . . . Manual 1 | . 1 . Terminals 1 | . 1 . Fabricators . | . . . Repair Stations . | . . . Recycling Units . | . . . Scanalyzers . | . . . Garrison Access . | . . . Terminal Hacks 3 | . . 3 Record 3 | . . 3 Fabricator Hacks . | . . . Repair Station Hacks . | . . . Recycling Unit Hacks . | . . . Scanalyzer . | . . . Garrison Access Hacks . | . . . Unauthorized Hacks 1 | . 1 . Terminals 1 | . 1 . Botnet 1 | . 1 . Fabricators . | . . . Repair Stations . | . . . Recycling Units . | . . . Scanalyzers . | . . . Garrison Access . | . . . Data Cores Recovered . | . . . Used . | . . . Hacking Detections . | . . . Full Trace Events . | . . . Feedback Events . | . . . Feedback Blocked . | . . . Robot Schematics Acquired . | . . . Robots Built . | . . . Authchips . | . . . Time . | . . . Total Robot Build Rating . | . . . Part Schematics Acquired . | . . . Parts Built . | . . . Authchips . | . . . Time . | . . . Total Part Build Rating . | . . . Part Studies Acquired . | . . . Parts Repaired . | . . . Time . | . . . Parts Recycled . | . . . Recycled Matter . | . . . Retrieved Matter . | . . . Retrieved Components . | . . . Parts Scanalyzed . | . . . Part Schematics Acquired . | . . . Parts Damaged . | . . . Bothacking | -11 -10 -10 ------------ Run | Yrd Mat Sub Used RIF Installer . | . . . Robots Hacked . | . . . Non-combat . | . . . Combat . | . . . Robot Hacks Applied . | . . . Relay Couplers Released . | . . . Fabnet Peak Effective % . | . . . Robots Rewired . | . . . Allies Hacked . | . . . Hacks Repelled . | . . . Allies | -11 -10 -10 -------- Run | Yrd Mat Sub Total Allies . | . . . Largest Group . | . . . Highest-Rated Group . | . . . Highest-Rated Ally . | . . . Total Orders . | . . . Ally Attacks . | . . . Total Damage . | . . . Kills . | . . . Allies Corrupted . | . . . Allies Melted . | . . . Intel | -11 -10 -10 ------- Run | Yrd Mat Sub Active Infowar (turns) 1354 | . 564 790 Optics 1103 | . 313 790 Seismic 251 | . 251 . Robot Analysis Total . | . . . Derelict Logs Recovered 2 | . . 2 Drone Launches . | . . . Drone Recoveries . | . . . Exploration | -11 -10 -10 ------------- Run | Yrd Mat Sub Turns Passed 1394 | . 604 790 Spaces Moved 959 | 1 340 618 Core . | . . . Treads . | . . . Legs 491 | 1 340 150 Wheels 468 | . . 468 Hover . | . . . Flight . | . . . Fastest Speed 95 | 120 120 95 Average Speed 119 | 120 134 111 Slowest Speed 190 | 120 190 190 Overloaded Moves . | . . . Propulsion Burnouts . | . . . Robots Hopped . | . . . Potential Cave-ins . | . . . Cave-ins Triggered . | . . . Exploration Rate (%) 41 | 2 74 48 Regions Visited 2 Branch Regions 1 Pre-discovered Areas . | . . . Known Exits Taken . | . . . Unknown Exits Taken 2 | 1 1 . Scrap Searched 3 | . . 3 Spaces Dug . | . . . Terrain Destroyed 4 | . . 4 Melee . | . . . Projectile 4 | . . 4 AOE . | . . . Terrain Rammed . | . . . Walls Destroyed . | . . . Machines Disabled . | . . . Actions | -11 -10 -10 --------- Run | Yrd Mat Sub Total 1085 | . 417 668 Wait 12 | . 9 3 Move 957 | . 339 618 Hop . | . . . Pick Up 6 | . 3 3 Fast Attach 8 | . 7 1 Attach 8 | . 3 5 Detach . | . . . Swap 13 | . 9 4 Drop 12 | . 8 4 Fire 69 | . 39 30 Melee . | . . . Ram . | . . . Kick . | . . . Crush . | . . . Escape Stasis . | . . . Rewire . | . . . Trap . | . . . Miscellaneous . | . . . Route ------- -11/Scrapyard -10/Materials (discovered 4 exits: [*Mat x2] / [*Min] / *Sub) -10/Subcaves (discovered 3 exits: *Mat x2 / Rec) History --------- Turn | Location | Event 1 | -11/Scrapyard | Discovered new exit (range 0) 1 | -11/Scrapyard | Entered Materials 225 | -10/Materials | Discovered new exit (range 4) 327 | -10/Materials | Build established: Mutant 354 | -10/Materials | Discovered new exit (range 13) 448 | -10/Materials | Discovered new exit (range 5) 583 | -10/Materials | Discovered new exit (range 13) 605 | -10/Materials | Entered Subcaves 764 | -10/Subcaves | Discovered new exit (range 5) 772 | -10/Subcaves | Ambushed by Subdwellers from Twisted Machinery 783 | -10/Subcaves | Core integrity fell below 50% 815 | -10/Subcaves | Core integrity fell below 20% 911 | -10/Subcaves | Learned Materials emergency access door positions 954 | -10/Subcaves | Visited Clippyterm 957 | -10/Subcaves | Identified exit to Materials 957 | -10/Subcaves | Identified exit to Recycling 1360 | -10/Subcaves | Learned Materials trap positions 1383 | -10/Subcaves | Disturbed a concealed Subdweller 1395 | -10/Subcaves | Destroyed by IK-5X9(R) with Subdweller Machine Gun Last Messages --------------- 01126_ Acquired 34 matter. 01133_ Acquired Shrapnel Trap. 01139_ Acquired 16 matter. 01163_ Acquired 67 matter. 01172_ System corrupted: Component data lost. 01247_ GQUM7WRDM3EIUCQSWLD/ 01251_ Acquired 15 matter. 01294_ TNJW0:5Q|K45J5|ZHGCWH4ZWHOZ 01318_ System corrupted: Substantial component data lost. 01354_ System corrupted: Energy discharge (-40). 01360_ Acquired derelict log, extracted data. Data stored: Materials trap records. 01380_ System corrupted: Energy discharge (-32). 01383_ IK-5X9(R) angrily emerges from the Twisted Machinery. 01384_ IK-5X9(R) knocked back. 01385_ Wheel destroyed. 01387_ Critical hit (Destroy). 01387_ Lgt. Nuclear Core destroyed. 01391_ Slug Cannon destroyed. 01394_ IK-5X9(R) affixes Scrap Shield Fragment to Scrap Shield. Map ----- +----------------------------------------------------+ | | | | | | | | | | | | | | | | | | | | | | | | | ?????????????????????????????????????????????????? | | ?????????????????????????????????????????????????? | | ?????????????????????????????????????????????????? | | ?????????????????????????????????????????????????? | | ?????????????????????????????????????????????????? | | ?????????????????????????????????????????????????? | | ?????????????????????????????????????????????????? | | ?????????????????????????????????????????????????? | | ???????????????????????##????????????????????????? | | ???????????????????????#